[Event "Rapid Tournament (RAP)"]
[Site "Biel, Switzerland"]
[Date "2026.07.12"]
[Round "5.50"]
[White "Hajduk, Tomasz"]
[Black "Gutierrez, Carlos Martin"]
[Result "1-0"]
[TimeControl "15 + 5"]
[WhiteTitle "-"]
[BlackTitle "-"]
[WhiteFideId "21811415"]
[BlackFideId "1352814"]
[WhiteElo "1879"]
[BlackElo "1586"]

1. e4 {[%clk 00:15:06]} {[%emt 00:00:02]} d5 {[%clk 00:15:09]} 2. exd5 {[%clk
00:15:10]} {[%emt 00:00:02]} Qxd5 {[%clk 00:15:13]} 3. Nc3 {[%clk 00:15:14]}
{[%emt 00:00:02]} Qd6 {[%clk 00:15:17]} 4. d4 {[%clk 00:15:17]} {[%emt
00:00:02]} c6 {[%clk 00:15:19]} {[%emt 00:00:03]} 5. Nf3 {[%clk 00:15:11]}
{[%emt 00:00:10]} Bg4 {[%clk 00:15:19]} {[%emt 00:00:05]} 6. Be3 {[%clk
00:15:08]} {[%emt 00:00:09]} Nf6 {[%clk 00:15:22]} {[%emt 00:00:01]} 7. Bc4
{[%clk 00:14:43]} {[%emt 00:00:30]} e6 {[%clk 00:15:14]} {[%emt 00:00:13]} 8.
h3 {[%clk 00:13:33]} {[%emt 00:01:15]} Bxf3 {[%clk 00:15:10]} {[%emt 00:00:09]}
9. Qxf3 {[%clk 00:13:36]} {[%emt 00:00:02]} Be7 {[%clk 00:15:13]} 10. Bd3
{[%clk 00:13:11]} {[%emt 00:00:32]} Nbd7 {[%clk 00:14:50]} {[%emt 00:00:28]} 11.
a3 {[%clk 00:11:58]} {[%emt 00:01:18]} O-O-O {[%clk 00:14:09]} {[%emt
00:00:44]} 12. Bf4 {[%clk 00:10:49]} {[%emt 00:01:15]} e5 {[%clk 00:14:12]}
{[%emt 00:00:03]} 13. dxe5 {[%clk 00:10:37]} {[%emt 00:00:17]} Nxe5 {[%clk
00:14:10]} {[%emt 00:00:07]} 14. Bf5+ {[%clk 00:08:37]} {[%emt 00:02:04]} Kc7
{[%clk 00:12:59]} {[%emt 00:01:17]} 15. Qe2 {[%clk 00:08:26]} {[%emt 00:00:16]}
Nd3+ {[%clk 00:12:03]} {[%emt 00:01:01]} 16. Bxd3 {[%clk 00:08:08]} {[%emt
00:00:22]} Qxf4 {[%clk 00:12:05]} {[%emt 00:00:03]} 17. Qxe7+ {[%clk 00:08:07]}
{[%emt 00:00:07]} Rd7 {[%clk 00:12:10]} {[%emt 00:00:01]} 18. Qb4 {[%clk
00:07:57]} {[%emt 00:00:14]} Re8+ {[%clk 00:10:29]} {[%emt 00:01:46]} 19. Ne2
{[%clk 00:06:53]} {[%emt 00:01:08]} Qxb4+ {[%clk 00:09:59]} {[%emt 00:00:35]}
20. axb4 {[%clk 00:06:56]} {[%emt 00:00:03]} a6 {[%clk 00:09:58]} {[%emt
00:00:05]} 21. Rd1 {[%clk 00:05:25]} {[%emt 00:01:36]} h6 {[%clk 00:09:54]}
{[%emt 00:00:10]} 22. f3 {[%clk 00:04:41]} {[%emt 00:00:49]} Nd5 {[%clk
00:09:44]} {[%emt 00:00:14]} 23. Kf2 {[%clk 00:04:19]} {[%emt 00:00:27]} Nxb4
{[%clk 00:09:37]} {[%emt 00:00:13]} 24. Bf5 {[%clk 00:04:11]} {[%emt 00:00:12]}
Rde7 {[%clk 00:09:35]} {[%emt 00:00:06]} 25. Rhe1 {[%clk 00:03:34]} {[%emt
00:00:43]} g6 {[%clk 00:09:21]} {[%emt 00:00:20]} 26. c3 {[%clk 00:03:20]}
{[%emt 00:00:18]} Nd5 {[%clk 00:09:06]} {[%emt 00:00:21]} 27. Be4 {[%clk
00:03:13]} {[%emt 00:00:12]} Nf6 {[%clk 00:08:46]} {[%emt 00:00:24]} 28. Bb1
{[%clk 00:03:07]} {[%emt 00:00:12]} Nd5 {[%clk 00:08:10]} {[%emt 00:00:41]} 29.
Be4 {[%clk 00:02:32]} {[%emt 00:00:39]} Nf6 {[%clk 00:08:11]} {[%emt 00:00:05]}
30. Ng3 {[%clk 00:02:35]} {[%emt 00:00:02]} Nd7 {[%clk 00:07:38]} {[%emt
00:00:38]} 31. Bc2 {[%clk 00:02:30]} {[%emt 00:00:10]} Ne5 {[%clk 00:06:20]}
{[%emt 00:01:23]} 32. b3 {[%clk 00:02:11]} {[%emt 00:00:24]} h5 {[%clk
00:05:42]} {[%emt 00:00:43]} 33. f4 {[%clk 00:01:55]} {[%emt 00:00:20]} h4
{[%clk 00:05:13]} {[%emt 00:00:34]} 34. fxe5 {[%clk 00:01:52]} {[%emt
00:00:08]} hxg3+ {[%clk 00:05:17]} {[%emt 00:00:02]} 35. Kxg3 {[%clk 00:01:55]}
{[%emt 00:00:01]} Rxe5 {[%clk 00:05:21]} 36. Rxe5 {[%clk 00:01:59]} {[%emt
00:00:02]} Rxe5 {[%clk 00:05:26]} 37. Kf2 {[%clk 00:02:00]} {[%emt 00:00:04]}
g5 {[%clk 00:05:20]} {[%emt 00:00:11]} 38. Rd4 {[%clk 00:01:55]} {[%emt
00:00:10]} f6 {[%clk 00:05:21]} {[%emt 00:00:04]} 39. Re4 {[%clk 00:01:52]}
{[%emt 00:00:08]} Rd5 {[%clk 00:05:20]} {[%emt 00:00:06]} 40. Ke2 {[%clk
00:01:50]} {[%emt 00:00:07]} c5 {[%clk 00:05:02]} {[%emt 00:00:23]} 41. c4
{[%clk 00:01:50]} {[%emt 00:00:05]} Rd6 {[%clk 00:04:57]} {[%emt 00:00:09]} 42.
Re7+ {[%clk 00:01:43]} {[%emt 00:00:12]} Kb6 {[%clk 00:04:59]} {[%emt
00:00:04]} 43. Bf5 {[%clk 00:01:41]} {[%emt 00:00:06]} Rd8 {[%clk 00:04:29]}
{[%emt 00:00:36]} 44. Re6+ {[%clk 00:01:42]} {[%emt 00:00:04]} Ka5 {[%clk
00:04:32]} {[%emt 00:00:02]} 45. Rxf6 {[%clk 00:01:45]} Kb4 {[%clk 00:04:31]}
{[%emt 00:00:06]} 46. Rb6+ {[%clk 00:01:43]} {[%emt 00:00:07]} Kc3 {[%clk
00:04:30]} {[%emt 00:00:07]} 47. Rxb7 {[%clk 00:01:46]} {[%emt 00:00:02]} Rd2+
{[%clk 00:04:34]} 48. Kf3 {[%clk 00:01:50]} Rd4 {[%clk 00:04:33]} {[%emt
00:00:06]} 49. g4 {[%clk 00:01:43]} {[%emt 00:00:12]} Rf4 {[%clk 00:04:37]} 50.
Kg3 {[%clk 00:01:47]} {[%emt 00:00:01]} Kd4 {[%clk 00:04:35]} {[%emt 00:00:08]}
51. Rd7+ {[%clk 00:01:46]} {[%emt 00:00:06]} Ke5 {[%clk 00:04:36]} {[%emt
00:00:04]} 52. Rd5+ {[%clk 00:01:49]} {[%emt 00:00:01]} Kf6 {[%clk 00:04:40]}
{[%emt 00:00:02]} 53. Rxc5 {[%clk 00:01:52]} {[%emt 00:00:02]} Rd4 {[%clk
00:04:41]} {[%emt 00:00:04]} 54. Rd5 {[%clk 00:01:53]} {[%emt 00:00:04]} 1-0

[Event "Rapid Tournament (RAP)"]
[Site "Biel, Switzerland"]
[Date "2026.07.12"]
[Round "5.51"]
[White "Mury, Marie"]
[Black "Materia, Matteo"]
[Result "0-1"]
[TimeControl "15 + 5"]
[WhiteTitle "-"]
[BlackTitle "-"]
[WhiteFideId "576035050"]
[BlackFideId "45150575"]
[WhiteElo "1603"]
[BlackElo "1868"]

1. e4 {[%clk 00:15:08]} {[%emt 00:03:22]} e5 {[%clk 00:15:09]} {[%emt
00:00:02]} 2. Nf3 {[%clk 00:15:12]} Nc6 {[%clk 00:15:13]} 3. d4 {[%clk
00:15:17]} exd4 {[%clk 00:15:16]} {[%emt 00:00:02]} 4. Nxd4 {[%clk 00:15:21]}
Nf6 {[%clk 00:15:21]} 5. Nxc6 {[%clk 00:15:18]} {[%emt 00:00:08]} bxc6 {[%clk
00:15:22]} {[%emt 00:00:04]} 6. Bd3 {[%clk 00:15:13]} {[%emt 00:00:10]} d5
{[%clk 00:14:22]} {[%emt 00:01:03]} 7. e5 {[%clk 00:15:03]} {[%emt 00:00:16]}
Nd7 {[%clk 00:11:13]} {[%emt 00:03:14]} 8. Bf4 {[%clk 00:14:40]} {[%emt
00:00:28]} Nc5 {[%clk 00:10:59]} {[%emt 00:00:19]} 9. O-O {[%clk 00:14:11]}
{[%emt 00:00:34]} Nxd3 {[%clk 00:10:35]} {[%emt 00:00:29]} 10. Qxd3 {[%clk
00:13:56]} {[%emt 00:00:20]} Be6 {[%clk 00:10:19]} {[%emt 00:00:22]} 11. Nd2
{[%clk 00:13:40]} {[%emt 00:00:21]} Qd7 {[%clk 00:09:43]} {[%emt 00:00:41]} 12.
Rad1 {[%clk 00:13:09]} {[%emt 00:00:34]} Be7 {[%clk 00:09:15]} {[%emt
00:00:34]} 13. Nf3 {[%clk 00:12:56]} {[%emt 00:00:19]} h6 {[%clk 00:07:11]}
{[%emt 00:02:09]} 14. Qa6 {[%clk 00:11:48]} {[%emt 00:01:13]} O-O {[%clk
00:05:21]} {[%emt 00:01:55]} 15. c4 {[%clk 00:10:59]} {[%emt 00:00:54]} Rfb8
{[%clk 00:04:21]} {[%emt 00:01:05]} 16. Be3 {[%clk 00:09:16]} {[%emt 00:01:47]}
Rxb2 {[%clk 00:03:28]} {[%emt 00:00:58]} 17. Nd4 {[%clk 00:08:22]} {[%emt
00:00:59]} Rb6 {[%clk 00:03:17]} {[%emt 00:00:16]} 18. Qa4 {[%clk 00:07:01]}
{[%emt 00:01:27]} c5 {[%clk 00:02:57]} {[%emt 00:00:25]} 19. Qxd7 {[%clk
00:06:51]} {[%emt 00:00:15]} Bxd7 {[%clk 00:03:01]} {[%emt 00:00:01]} 20. Nb5
{[%clk 00:06:37]} {[%emt 00:00:19]} Bxb5 {[%clk 00:03:01]} {[%emt 00:00:05]} 21.
cxb5 {[%clk 00:06:35]} {[%emt 00:00:06]} d4 {[%clk 00:03:05]} {[%emt 00:00:01]}
22. Bf4 {[%clk 00:06:04]} {[%emt 00:00:27]} Rxb5 {[%clk 00:03:09]} {[%emt
00:00:11]} 23. Rfe1 {[%clk 00:05:39]} {[%emt 00:00:29]} Rab8 {[%clk 00:03:10]}
{[%emt 00:00:04]} 24. e6 {[%clk 00:05:36]} {[%emt 00:00:09]} fxe6 {[%clk
00:03:03]} {[%emt 00:00:11]} 25. Rxe6 {[%clk 00:05:24]} {[%emt 00:00:17]} Rb1
{[%clk 00:02:58]} {[%emt 00:00:10]} 26. Rde1 {[%clk 00:04:49]} {[%emt
00:00:38]} Bd6 {[%clk 00:02:24]} {[%emt 00:00:41]} 27. Bg3 {[%clk 00:04:06]}
{[%emt 00:00:49]} R8b2 {[%clk 00:02:06]} {[%emt 00:00:23]} 28. Re8+ {[%clk
00:03:31]} {[%emt 00:00:40]} Kf7 {[%clk 00:02:09]} {[%emt 00:00:02]} 29. Bxd6
{[%clk 00:03:18]} {[%emt 00:00:17]} cxd6 {[%clk 00:02:13]} {[%emt 00:00:02]} 30.
R8e7+ {[%clk 00:03:16]} {[%emt 00:00:06]} Kg8 {[%clk 00:02:09]} {[%emt
00:00:09]} 31. Re8+ {[%clk 00:03:14]} {[%emt 00:00:08]} Kh7 {[%clk 00:02:13]}
32. h4 {[%clk 00:03:13]} {[%emt 00:00:05]} d3 {[%clk 00:02:13]} {[%emt
00:00:06]} 33. Rxb1 {[%clk 00:02:19]} {[%emt 00:00:59]} Rxb1+ {[%clk 00:02:16]}
{[%emt 00:00:02]} 34. Kh2 {[%clk 00:02:20]} {[%emt 00:00:02]} d2 {[%clk
00:02:20]} {[%emt 00:00:03]} 35. Re7 {[%clk 00:02:05]} {[%emt 00:00:19]} d1=Q
{[%clk 00:02:23]} {[%emt 00:00:02]} 36. Rxa7 {[%clk 00:01:59]} {[%emt
00:00:12]} Qg4 {[%clk 00:02:24]} {[%emt 00:00:03]} 37. g3 {[%clk 00:01:51]}
{[%emt 00:00:13]} Qf3 {[%clk 00:02:28]} {[%emt 00:00:01]} 0-1

[Event "Rapid Tournament (RAP)"]
[Site "Biel, Switzerland"]
[Date "2026.07.12"]
[Round "6.1"]
[White "Sasikiran, Krishnan"]
[Black "Alexakis, Dimitris"]
[Result "0-1"]
[TimeControl "15 + 5"]
[WhiteTitle "-"]
[BlackTitle "-"]
[WhiteFideId "5004985"]
[BlackFideId "4277023"]
[WhiteElo "2520"]
[BlackElo "2518"]

1. e4 {[%clk 00:15:05]} c5 {[%clk 00:14:35]} {[%emt 00:59:17]} 2. Nf3 {[%clk
00:15:04]} {[%emt 00:00:08]} Nc6 {[%clk 00:14:38]} {[%emt 00:00:02]} 3. Nc3
{[%clk 00:14:53]} {[%emt 00:00:15]} e6 {[%emt 00:02:04]} 4. d4 {[%clk
00:14:50]} cxd4 {[%clk 00:12:50]} {[%emt 00:00:02]} 5. Nxd4 {[%clk 00:14:54]}
{[%emt 00:00:02]} Qc7 {[%clk 00:12:53]} {[%emt 00:00:02]} 6. Be3 {[%clk
00:14:33]} {[%emt 00:00:25]} a6 {[%clk 00:12:40]} {[%emt 00:00:19]} 7. a3
{[%clk 00:14:25]} {[%emt 00:00:12]} b5 {[%clk 00:12:41]} {[%emt 00:00:05]} 8.
Nxc6 {[%clk 00:14:15]} {[%emt 00:00:16]} Qxc6 {[%clk 00:12:35]} {[%emt
00:00:11]} 9. h4 {[%clk 00:14:06]} {[%emt 00:00:14]} Bb7 {[%clk 00:12:01]}
{[%emt 00:00:39]} 10. h5 {[%clk 00:13:58]} {[%emt 00:00:12]} h6 {[%clk
00:12:04]} {[%emt 00:00:02]} 11. Rh3 {[%clk 00:12:26]} {[%emt 00:01:38]} Rc8
{[%clk 00:10:32]} {[%emt 00:01:37]} 12. Bd4 {[%clk 00:11:25]} {[%emt 00:01:06]}
Nf6 {[%clk 00:08:11]} {[%emt 00:02:26]} 13. Bxf6 {[%clk 00:10:52]} {[%emt
00:00:38]} gxf6 {[%clk 00:08:14]} {[%emt 00:00:02]} 14. Qd4 {[%clk 00:10:54]}
{[%emt 00:00:03]} Be7 {[%clk 00:06:14]} {[%emt 00:02:05]} 15. O-O-O {[%clk
00:10:23]} {[%emt 00:00:36]} Rc7 {[%clk 00:05:34]} {[%emt 00:00:46]} 16. Kb1
{[%clk 00:09:12]} {[%emt 00:01:16]} Qc5 {[%clk 00:05:33]} {[%emt 00:00:05]} 17.
Qd2 {[%clk 00:08:55]} {[%emt 00:00:21]} b4 {[%clk 00:05:28]} {[%emt 00:00:11]}
18. axb4 {[%clk 00:05:48]} {[%emt 00:03:12]} Qxb4 {[%clk 00:05:30]} {[%emt
00:00:02]} 19. Rd3 {[%clk 00:05:52]} Bc6 {[%clk 00:05:21]} {[%emt 00:00:15]} 20.
Rd4 {[%clk 00:04:54]} {[%emt 00:01:03]} Qb8 {[%clk 00:04:31]} {[%emt 00:00:54]}
21. Nd5 {[%clk 00:02:56]} {[%emt 00:02:03]} Rb7 {[%clk 00:03:07]} {[%emt
00:01:30]} 22. Qc3 {[%clk 00:01:59]} {[%emt 00:01:02]} Rg8 {[%clk 00:01:58]}
{[%emt 00:01:14]} 23. Nxe7 {[%clk 00:00:41]} {[%emt 00:01:22]} Kxe7 {[%clk
00:02:02]} {[%emt 00:00:02]} 24. f3 {[%clk 00:00:32]} {[%emt 00:00:14]} Rg5
{[%clk 00:01:39]} {[%emt 00:00:28]} 25. g4 {[%clk 00:00:19]} {[%emt 00:00:19]}
Qc7 {[%clk 00:00:41]} {[%emt 00:01:03]} 26. Rb4 {[%clk 00:00:12]} {[%emt
00:00:12]} a5 {[%clk 00:00:12]} {[%emt 00:00:34]} 27. Rxb7 {[%clk 00:00:12]}
{[%emt 00:00:05]} Qxb7 {[%clk 00:00:16]} {[%emt 00:00:01]} 28. Bd3 {[%clk
00:00:10]} {[%emt 00:00:06]} Qb4 {[%clk 00:00:10]} {[%emt 00:00:12]} 29. Qxb4+
{[%clk 00:00:10]} {[%emt 00:00:05]} axb4 {[%clk 00:00:14]} 30. b3 {[%clk
00:00:08]} {[%emt 00:00:08]} d5 {[%clk 00:00:13]} {[%emt 00:00:06]} 31. Re1
{[%clk 00:00:09]} {[%emt 00:00:04]} dxe4 {[%clk 00:00:11]} {[%emt 00:00:07]} 32.
Bxe4 {[%clk 00:00:10]} {[%emt 00:00:04]} Re5 {[%clk 00:00:14]} {[%emt
00:00:02]} 33. Re2 {[%clk 00:00:14]} Bxe4 {[%clk 00:00:10]} {[%emt 00:00:09]}
34. Rxe4 {[%clk 00:00:18]} {[%emt 00:00:01]} Rxe4 {[%clk 00:00:14]} {[%emt
00:00:01]} 35. fxe4 {[%clk 00:00:23]} Kd6 {[%clk 00:00:17]} {[%emt 00:00:02]}
36. c3 {[%clk 00:00:24]} {[%emt 00:00:03]} bxc3 {[%clk 00:00:14]} {[%emt
00:00:09]} 37. Kc2 {[%clk 00:00:28]} Ke5 {[%clk 00:00:17]} {[%emt 00:00:02]} 38.
Kxc3 {[%clk 00:00:25]} {[%emt 00:00:08]} Kxe4 {[%clk 00:00:21]} {[%emt
00:00:01]} 39. Kc4 {[%clk 00:00:29]} e5 {[%clk 00:00:14]} {[%emt 00:00:12]} 40.
b4 {[%clk 00:00:33]} Kf3 {[%clk 00:00:15]} {[%emt 00:00:04]} 41. b5 {[%clk
00:00:37]} {[%emt 00:00:02]} e4 {[%clk 00:00:18]} {[%emt 00:00:01]} 42. b6
{[%clk 00:00:40]} {[%emt 00:00:02]} e3 {[%clk 00:00:22]} 43. b7 {[%clk
00:00:43]} {[%emt 00:00:02]} e2 {[%clk 00:00:26]} {[%emt 00:00:01]} 44. b8=Q
{[%clk 00:00:45]} {[%emt 00:00:03]} e1=Q {[%emt 00:00:03]} 45. Qb7+ {[%clk
00:00:45]} {[%emt 00:00:05]} Qe4+ {[%clk 00:00:29]} {[%emt 00:00:04]} 46. Kd4
{[%emt 00:00:07]} 0-1

[Event "Rapid Tournament (RAP)"]
[Site "Biel, Switzerland"]
[Date "2026.07.12"]
[Round "6.2"]
[White "Dong, Hongfu"]
[Black "Bu, Xiangzhi"]
[Result "0-1"]
[TimeControl "15 + 5"]
[WhiteTitle "-"]
[BlackTitle "-"]
[WhiteFideId "8626960"]
[BlackFideId "8601445"]
[WhiteElo "2271"]
[BlackElo "2583"]

1. e4 {[%clk 00:15:08]} {[%emt 00:00:02]} e5 {[%clk 00:15:09]} {[%emt
00:00:03]} 2. Nf3 {[%clk 00:15:10]} {[%emt 00:00:02]} Nc6 {[%clk 00:15:12]}
{[%emt 00:00:02]} 3. Bc4 {[%clk 00:15:10]} {[%emt 00:00:05]} Nf6 {[%clk
00:15:15]} {[%emt 00:00:02]} 4. Ng5 {[%clk 00:15:04]} {[%emt 00:00:12]} d5
{[%clk 00:15:18]} {[%emt 00:00:01]} 5. exd5 {[%clk 00:15:07]} {[%emt 00:00:01]}
b5 {[%clk 00:15:20]} {[%emt 00:00:03]} 6. Bf1 {[%clk 00:15:10]} {[%emt
00:00:02]} Nd4 {[%clk 00:14:52]} {[%emt 00:00:34]} 7. c3 {[%clk 00:15:14]}
{[%emt 00:00:01]} Nxd5 {[%clk 00:14:55]} {[%emt 00:00:02]} 8. cxd4 {[%clk
00:15:18]} {[%emt 00:00:01]} Qxg5 {[%clk 00:14:59]} {[%emt 00:00:01]} 9. Bxb5+
{[%clk 00:15:22]} {[%emt 00:00:02]} Kd8 {[%clk 00:15:03]} 10. Qf3 {[%clk
00:07:34]} {[%emt 00:07:52]} Bb7 {[%clk 00:15:06]} {[%emt 00:00:02]} 11. O-O
{[%clk 00:06:56]} {[%emt 00:00:44]} Rb8 {[%clk 00:15:01]} {[%emt 00:00:09]} 12.
Re1 {[%clk 00:06:27]} {[%emt 00:00:34]} Nb4 {[%clk 00:13:34]} {[%emt 00:01:33]}
13. Qh3 {[%clk 00:06:19]} {[%emt 00:00:12]} Bc8 {[%clk 00:13:21]} {[%emt
00:00:18]} 14. Qc3 {[%clk 00:03:49]} {[%emt 00:02:36]} Rxb5 {[%clk 00:13:12]}
{[%emt 00:00:14]} 15. dxe5 {[%clk 00:03:53]} {[%emt 00:00:01]} Bb7 {[%clk
00:12:24]} {[%emt 00:00:54]} 16. f3 {[%clk 00:03:57]} {[%emt 00:00:01]} Qh4
{[%clk 00:11:47]} {[%emt 00:00:41]} 17. d4 {[%clk 00:03:36]} {[%emt 00:00:26]}
Nc2 {[%clk 00:11:04]} {[%emt 00:00:48]} 18. Bg5+ {[%clk 00:03:39]} {[%emt
00:00:01]} Qxg5 {[%clk 00:11:08]} {[%emt 00:00:01]} 19. Qxc2 {[%clk 00:03:43]}
{[%emt 00:00:01]} Bb4 {[%clk 00:09:44]} {[%emt 00:01:29]} 20. Nc3 {[%clk
00:03:41]} {[%emt 00:00:07]} Bxc3 {[%clk 00:09:47]} {[%emt 00:00:02]} 21. bxc3
{[%clk 00:03:45]} {[%emt 00:00:01]} Bxf3 {[%clk 00:09:31]} {[%emt 00:00:21]} 22.
Rab1 {[%clk 00:00:39]} {[%emt 00:03:11]} Rxb1 {[%clk 00:09:12]} {[%emt
00:00:24]} 23. Rxb1 {[%clk 00:00:41]} {[%emt 00:00:04]} Qe3+ {[%emt 00:00:34]}
24. Qf2 {[%clk 00:00:39]} Qxf2+ {[%clk 00:08:53]} {[%emt 00:00:01]} 25. Kxf2
{[%clk 00:00:43]} Bg4 {[%clk 00:08:57]} {[%emt 00:00:01]} 26. Rb7 {[%clk
00:00:39]} {[%emt 00:00:08]} a6 {[%clk 00:08:58]} {[%emt 00:00:05]} 27. d5
{[%clk 00:00:39]} {[%emt 00:00:06]} Bc8 {[%clk 00:08:09]} {[%emt 00:00:53]} 28.
Ra7 {[%clk 00:00:27]} {[%emt 00:00:16]} Re8 {[%clk 00:08:13]} {[%emt 00:00:02]}
29. d6 {[%clk 00:00:31]} {[%emt 00:00:01]} Rxe5 {[%clk 00:08:15]} {[%emt
00:00:03]} 30. Rxc7 {[%clk 00:00:35]} {[%emt 00:00:01]} Rf5+ {[%clk 00:08:14]}
{[%emt 00:00:06]} 31. Ke3 {[%clk 00:00:39]} {[%emt 00:00:01]} Rf6 {[%clk
00:08:18]} 32. c4 {[%clk 00:00:33]} {[%emt 00:00:11]} Re6+ {[%clk 00:08:19]}
{[%emt 00:00:05]} 0-1

[Event "Rapid Tournament (RAP)"]
[Site "Biel, Switzerland"]
[Date "2026.07.12"]
[Round "6.3"]
[White "Gopal, G.N."]
[Black "Savitha, Shri B"]
[Result "1/2-1/2"]
[TimeControl "15 + 5"]
[WhiteTitle "-"]
[BlackTitle "-"]
[WhiteFideId "5015693"]
[BlackFideId "35061887"]
[WhiteElo "2471"]
[BlackElo "2317"]

1. e4 {[%clk 00:15:05]} c5 {[%clk 00:15:05]} 2. Nf3 {[%clk 00:15:07]} {[%emt
00:58:47]} e6 {[%clk 00:14:48]} {[%emt 00:00:02]} 3. d4 {[%clk 00:15:01]}
{[%emt 00:00:11]} cxd4 {[%clk 00:14:51]} {[%emt 00:00:02]} 4. Nxd4 {[%clk
00:15:04]} {[%emt 00:00:01]} Nc6 {[%clk 00:14:55]} 5. Nc3 {[%clk 00:15:04]}
{[%emt 00:00:06]} Qc7 {[%clk 00:14:57]} {[%emt 00:00:03]} 6. Be2 {[%clk
00:14:10]} {[%emt 00:00:59]} Nf6 {[%clk 00:14:34]} {[%emt 00:00:28]} 7. Be3
{[%clk 00:13:35]} {[%emt 00:00:39]} a6 {[%clk 00:14:36]} {[%emt 00:00:03]} 8.
O-O {[%clk 00:13:37]} {[%emt 00:00:03]} Be7 {[%clk 00:14:41]} 9. f4 {[%clk
00:13:40]} {[%emt 00:00:02]} d6 {[%clk 00:14:45]} 10. Qe1 {[%clk 00:13:23]}
{[%emt 00:00:21]} O-O {[%clk 00:11:26]} {[%emt 00:03:24]} 11. Kh1 {[%clk
00:13:22]} {[%emt 00:00:06]} Bd7 {[%clk 00:09:37]} {[%emt 00:01:55]} 12. Qg3
{[%clk 00:13:03]} {[%emt 00:00:24]} Kh8 {[%clk 00:09:17]} {[%emt 00:00:25]} 13.
Rad1 {[%clk 00:10:52]} {[%emt 00:02:16]} Rac8 {[%clk 00:08:47]} {[%emt
00:00:35]} 14. a3 {[%clk 00:08:16]} {[%emt 00:02:40]} b5 {[%clk 00:06:18]}
{[%emt 00:02:34]} 15. Bf3 {[%clk 00:05:39]} {[%emt 00:02:42]} e5 {[%clk
00:05:07]} {[%emt 00:01:16]} 16. Nf5 {[%clk 00:04:47]} {[%emt 00:00:56]} Bxf5
{[%clk 00:04:42]} {[%emt 00:00:30]} 17. exf5 {[%clk 00:04:51]} {[%emt
00:00:02]} Na5 {[%clk 00:04:26]} {[%emt 00:00:21]} 18. fxe5 {[%clk 00:02:19]}
{[%emt 00:02:37]} dxe5 {[%clk 00:04:30]} {[%emt 00:00:01]} 19. Bg5 {[%clk
00:02:21]} {[%emt 00:00:03]} e4 {[%clk 00:03:08]} {[%emt 00:01:27]} 20. Bf4
{[%clk 00:02:17]} {[%emt 00:00:08]} Qc6 {[%clk 00:03:06]} {[%emt 00:00:07]} 21.
Nxe4 {[%clk 00:01:57]} {[%emt 00:00:25]} Qxc2 {[%clk 00:02:06]} {[%emt
00:01:04]} 22. Be5 {[%clk 00:01:54]} {[%emt 00:00:08]} Nc4 {[%clk 00:01:53]}
{[%emt 00:00:18]} 23. Bxf6 {[%clk 00:01:02]} {[%emt 00:00:57]} Bxf6 {[%clk
00:01:57]} 24. Nxf6 {[%clk 00:00:56]} {[%emt 00:00:11]} gxf6 {[%clk 00:02:01]}
{[%emt 00:00:01]} 25. Rf2 {[%clk 00:00:48]} {[%emt 00:00:13]} Qb3 {[%clk
00:00:54]} {[%emt 00:01:12]} 26. Qh4 {[%clk 00:00:50]} {[%emt 00:00:03]} Kg7
{[%clk 00:00:56]} {[%emt 00:00:03]} 27. Qg3+ {[%clk 00:00:44]} {[%emt
00:00:11]} Kh8 {[%clk 00:01:01]} {[%emt 00:00:01]} 28. Qh4 {[%clk 00:00:48]}
{[%emt 00:00:01]} Kg7 {[%clk 00:01:05]} 29. Qg3+ {[%clk 00:00:27]} {[%emt
00:00:26]} Kh8 {[%clk 00:01:04]} {[%emt 00:00:06]} 30. Qh4 {[%clk 00:00:21]}
{[%emt 00:00:11]} 1/2-1/2